Cogmind - Beta 15 @@@ ROGUE MODE // 2025.08.10 @ 19:40:20 Player: Cracklepappy Result: Destroyed by G-47 Trooper with Particle Gun Performance ------------- Evolutions (0) 0 Regions Visited (2) 400 Robots Destroyed (26) 130 Value Destroyed (340) 340 Prototype IDs (0) 0 Alien Tech Used (0) 0 Bonus (0) 0 TOTAL SCORE: 870 Bonus ------- None Cogmind --------- Core Integrity 0/250 Matter 272/300 Energy 265/265 System Corruption 0% Temperature Cool (50) Movement Rolling (140) Ox4 Location -10/Mines Parts ------- > --- POWER (1) -------- Improved Ion Engine > --- PROPULSION (2) --- Wheel Wheel > --- UTILITY (2) ------ Huge Storage Unit Seismic Detector > --- WEAPON (2) ------- Autogun Light Cannon > --- INVENTORY (25) --- Improved Ion Engine Improved Ion Engine Wheel Wheel Wheel Compact Wheel Large Battery (200) Large Matter Pod (150) High-capacity Matter Pod (200) Structural Scanner Seismic Detector Tractor Beam EM Shotgun Assault Rifle Assault Rifle Assault Rifle Autogun Autogun Autogun Mini Grenade Launcher Mining Laser Maul Peak State ------------ > --- POWER ------------ Improved Ion Engine > --- PROPULSION ------- Wheel Wheel > --- UTILITY ---------- Huge Storage Unit Seismic Detector > --- WEAPON ----------- EM Shotgun EM Shotgun > --- INVENTORY -------- Improved Ion Engine Improved Ion Engine Improved Ion Engine Wheel Wheel Wheel Wheel Wheel Small Storage Unit Medium Matter Pod Large Matter Pod Seismic Detector Tractor Beam EM Shotgun EM Shotgun Medium Laser Medium Laser Assault Rifle Assault Rifle Assault Rifle Assault Rifle Assault Rifle Assault Rifle Light Cannon Maul [Rating: 13] Favorites ----------- Power Improved Ion Engine Engine Improved Ion Engine Propulsion Wheel Wheel Wheel Utility Seismic Detector Device Seismic Detector Storage Huge Storage Unit Weapon EM Shotgun Energy Gun EM Shotgun Ballistic Gun Assault Rifle Ballistic Cannon Light Cannon Launcher Mini Grenade Launcher Special Weapon Mining Laser Build | -11 -10 -10 ------- Run | Yrd Mat Min Slots Evolved . | . . . Power . | . . . Propulsion . | . . . Utility . | . . . Weapon . | . . . Parts Attached 23 | 7 9 7 Power 3 | 1 1 1 Engine 3 | 1 1 1 Core . | . . . Reactor . | . . . Propulsion 6 | 2 2 2 Treads . | . . . Leg . | . . . Wheel 6 | 2 2 2 Hover . | . . . Flight . | . . . Utility 3 | 2 1 . Device 1 | 1 . . Storage 2 | 1 1 . Processor . | . . . Hackware . | . . . Protection . | . . . Artifact . | . . . Weapon 11 | 2 5 4 Energy Gun 5 | 1 2 2 Energy Cannon . | . . . Ballistic Gun 3 | 1 1 1 Ballistic Cannon 1 | . 1 . Launcher 1 | . . 1 Special Weapon 1 | . 1 . Impact Weapon . | . . . Slashing Weapon . | . . . Piercing Weapon . | . . . Special Melee Weapon . | . . . Unidentified Prototypes . | . . . Parts Lost 6 | . . 6 Power 1 | . . 1 Propulsion 2 | . . 2 Utility . | . . . Weapon 3 | . . 3 Highest Loss Streak 6 | . . 6 To Critical Strikes . | . . . Average Backups 20 | 5 20 24 Power 2 | . 2 2 Propulsion 3 | 3 3 3 Utility 4 | . 4 5 Weapon 10 | 1 9 12 Tool/Special . | . . . Unused Backups 31 | 4 7 20 Power 5 | . 3 2 Propulsion 9 | 4 1 4 Utility 7 | . 1 6 Weapon 10 | . 2 8 Tool/Special . | . . . Average Slot Usage (%) 99 | . 100 99 Engine 13 | . 14 13 Wheel 27 | . 28 27 Device 14 | . 14 14 Storage 14 | . 14 14 Energy Gun 21 | . 19 23 Ballistic Gun 1 | . 2 . Ballistic Cannon 3 | . 5 2 Peak Build Rating 13 | 7 13 13 Average Rating 11 | 6 10 12 On Entrance 6 | . 7 13 Naked Turns . | . . . Heaviest Build 94 | 15 94 94 Greatest Support 20 | 20 20 20 Greatest Overweight (x) 4 | . 4 4 Average Overweight (x) 3 | . 3 4 Largest Inventory Capacity 25 | 8 25 25 Average Capacity 23 | 7 23 25 Most Carried 25 | 8 25 25 Average Carried 20 | 6 20 24 Final Capacity 25 | 8 25 25 Final Carried 25 | 8 25 22 Class Distribution -------------------- 100% | Mutant Dominant Class ---------------- Mutant | -10/Materials Mutant | -10/Mines Resources | -11 -10 -10 ----------- Run | Yrd Mat Min Matter Collected 1075 | 321 677 77 Remotely . | . . . Salvage Created 824 | 279 403 142 Parts 58 | 25 29 4 Haulers Intercepted 1 | . 1 . Recyclers Shooed . | . . . Parts Field Recycled . | . . . Retrieved Matter . | . . . Parts Self-Destructed . | . . . Prevented . | . . . Kills | -11 -10 -10 ------- Run | Yrd Mat Min Combat Hostiles Destroyed 10 | . 9 1 Guns 6 | . 6 . Cannons 3 | . 3 . Classes Destroyed 8 | 3 5 . Worker 2 | 2 . . Builder 2 | . 2 . Tunneler 7 | 7 . . Hauler 1 | . 1 . Recycler 3 | 1 1 1 Watcher 1 | . 1 . Swarmer 5 | . 5 . Grunt 5 | . 4 1 Best Kill Streak 4 | 3 4 1 Combat Bots Only 3 | . 3 1 Max Kills in Single Turn 2 | 1 2 1 Gunslinging . | . . . Exploded . | . . . Melee . | . . . Uniques/NPCs Destroyed . | . . . Combat | -11 -10 -10 -------- Run | Yrd Mat Min Hostile Shots Fired 47 | . 27 20 Missed 13 | . 8 5 Hits 34 | . 19 15 Projectile 34 | . 19 15 AOE 9 | . . 9 Critical Strikes 1 | . . 1 Damage Taken 666 | . 174 492 Core 258 | . 12 246 Absorbed by Shields . | . . . Core Remaining (%) 100 | 100 . . Volleys Fired 65 | 17 34 14 Largest 2 | 2 2 2 Hottest 100 | 70 100 90 Shots Fired 118 | 34 63 21 Gun 87 | 34 37 16 Cannon 25 | . 21 4 Launcher 1 | . . 1 Special 5 | . 5 . Kinetic 54 | 17 32 5 Thermal 32 | 17 15 . Explosive 1 | . . 1 Electromagnetic 31 | . 16 15 Robot Hit Streak 7 | 7 5 5 Robot Miss Streak 2 | 1 2 2 Penetration Max . | . . . Secondary Targets . | . . . Shots Hit Robots 76 | 21 37 18 Core Hits 37 | 11 21 5 Critical Kills . | . . . Critical Parts Destroyed 1 | . 1 . Critical Strikes 1 | . 1 . Destroy 1 | . 1 . Melee Attacks . | . . . Impact . | . . . Slashing . | . . . Piercing . | . . . Sneak Attacks . | . . . Combat Hostiles . | . . . Follow-up Attacks . | . . . Damage Inflicted 1193 | 295 599 299 Guns 845 | 295 339 211 Cannons 334 | . 260 74 Explosions 14 | . . 14 Melee . | . . . Ramming . | . . . Kinetic 615 | 182 347 86 Thermal 175 | 113 62 . Explosive 14 | . . 14 Electromagnetic 389 | . 190 199 Impact . | . . . Slashing . | . . . Piercing . | . . . Highest Corruption . | . . . Average Corruption . | . . . Corruption Purged . | . . . Corruption Blocked . | . . . Overload Shots . | . . . Overflow Damage . | . . . Projectiles . | . . . Explosions . | . . . Melee . | . . . Knockbacks 5 | . 3 2 Impact . | . . . Kinetic 5 | . 3 2 Secondary . | . . . Self-Inflicted Damage . | . . . Shots . | . . . Rammed . | . . . Targets Rammed . | . . . Kicked . | . . . Crushed . | . . . Highest Temperature 195 | 36 195 150 Average Temperature 47 | 12 57 61 Received Heat Transfer 114 | . 54 60 Siege Activations . | . . . Martial Activations . | . . . Shielding Activations . | . . . Robots Disrupted . | . . . Combat Hostiles . | . . . Robots Corrupted 1 | . . 1 Combat Hostiles 1 | . . 1 Parts Fried 3 | . . 3 Impact Corruptions . | . . . Robots Melted . | . . . Combat Hostiles . | . . . Parts Melted . | . . . Heat Transferred 518 | 333 185 . Parts Sabotaged . | . . . Parts Stolen . | . . . Parts Stripped . | . . . Power Chain Reactions . | . . . Alert | -11 -10 -10 ------- Run | Yrd Mat Min Maximum Alert Level . | . . . Low Security (%) 100 | 100 100 100 Level 1 . | . . . Level 2 . | . . . Level 3 . | . . . Level 4 . | . . . Level 5 . | . . . High Security . | . . . Max Security . | . . . Peak Influence 141 | 10 141 30 Initial 3 | . 3 . Average 24 | 2 49 . Influence Increases 481 | 50 388 43 Destroy 0b10 Robot/C 200 | . 180 20 Destroy 0b10 Robot/NC 80 | 50 25 5 Destroy Leader 44 | . 34 10 Successful Hack 10 | . 10 . Select Force Hacks 30 | . 30 . Disable Machine 15 | . 15 . Destroy Structure 12 | . 4 8 Lose Combat Pursuer 90 | . 90 . Influence Decreases 473 | 45 393 35 Entered New Map 2 | . 2 . Time Decay 471 | 45 391 35 Squads Dispatched 3 | . 3 . Investigation 1 | . 1 . Extermination . | . . . Reinforcement 2 | . 2 . Assault . | . . . Garrison . | . . . Intercept . | . . . Searches Triggered . | . . . Construction Impeded . | . . . Haulers Reinforced . | . . . Active Scanning Responses . | . . . Cargo Convoy Interrupts . | . . . Stealth | -11 -10 -10 --------- Run | Yrd Mat Min Distress Signals 2 | . 2 . Communications Jammed . | . . . Distress Signals . | . . . Times Spotted 27 | . 21 6 Peak Tracking Total 5 | . 5 2 Tactical Retreats 4 | . 4 . Traps | -11 -10 -10 ------- Run | Yrd Mat Min Traps Triggered . | . . . Indirectly . | . . . Trap Hack Attempts . | . . . Triggered . | . . . Disarmed . | . . . Reprogrammed . | . . . Reused . | . . . Traps Extracted . | . . . Installed . | . . . Triggered . | . . . Machines | -11 -10 -10 ---------- Run | Yrd Mat Min Machines Disabled 1 | . 1 . Max in Single Turn 1 | . 1 . Machines Repaired . | . . . Machines Dismantled . | . . . Machines Sabotaged . | . . . Overloaded Fab Kills . | . . . Hacking | -11 -10 -10 --------- Run | Yrd Mat Min Machines Accessed 4 | . 4 . Terminals 3 | . 3 . Fabricators . | . . . Repair Stations . | . . . Recycling Units 1 | . 1 . Scanalyzers . | . . . Garrison Access . | . . . Total Hacks 9 | . 9 . Successful 7 | . 7 . Failed 2 | . 2 . Catastrophic . | . . . Database Lockouts . | . . . Manual 9 | . 9 . Terminals 7 | . 7 . Fabricators . | . . . Repair Stations . | . . . Recycling Units 2 | . 2 . Scanalyzers . | . . . Garrison Access . | . . . Terminal Hacks . | . . . Fabricator Hacks . | . . . Repair Station Hacks . | . . . Recycling Unit Hacks 1 | . 1 . Retrieve Components 1 | . 1 . Scanalyzer . | . . . Garrison Access Hacks . | . . . Unauthorized Hacks 6 | . 6 . Terminals 5 | . 5 . Assimilate 1 | . 1 . Operators 1 | . 1 . Skim 3 | . 3 . Fabricators . | . . . Repair Stations . | . . . Recycling Units 1 | . 1 . Tunnel 1 | . 1 . Scanalyzers . | . . . Garrison Access . | . . . Data Cores Recovered . | . . . Used . | . . . Hacking Detections 3 | . 3 . Full Trace Events . | . . . Feedback Events . | . . . Feedback Blocked . | . . . Robot Schematics Acquired . | . . . Robots Built . | . . . Authchips . | . . . Time . | . . . Total Robot Build Rating . | . . . Part Schematics Acquired . | . . . Parts Built . | . . . Authchips . | . . . Time . | . . . Total Part Build Rating . | . . . Parts Repaired . | . . . Time . | . . . Parts Recycled . | . . . Recycled Matter . | . . . Retrieved Matter . | . . . Retrieved Components 5 | . 5 . Parts Scanalyzed . | . . . Part Schematics Acquired . | . . . Parts Damaged . | . . . Bothacking | -11 -10 -10 ------------ Run | Yrd Mat Min Used RIF Installer . | . . . Robots Hacked . | . . . Non-combat . | . . . Combat . | . . . Robot Hacks Applied . | . . . Relay Couplers Released . | . . . Fabnet Peak Effective % . | . . . Robots Rewired . | . . . Allies Hacked . | . . . Hacks Repelled . | . . . Allies | -11 -10 -10 -------- Run | Yrd Mat Min Total Allies 1 | . 1 . Largest Group 1 | . 1 1 Highest-Rated Group 10 | . 10 10 Highest-Rated Ally 10 | . 10 10 Total Orders 9 | . . 9 STAY 7 | . . 7 FOLLOW 2 | . . 2 Ally Attacks . | . . . Total Damage . | . . . Kills . | . . . Allies Corrupted . | . . . Allies Melted . | . . . Intel | -11 -10 -10 ------- Run | Yrd Mat Min Active Infowar (turns) 2948 | 159 1470 1319 Seismic 2948 | 159 1470 1319 Robot Analysis Total . | . . . Derelict Logs Recovered . | . . . Drone Launches . | . . . Drone Recoveries . | . . . Exploration | -11 -10 -10 ------------- Run | Yrd Mat Min Turns Passed 3020 | 231 1470 1319 Spaces Moved 1441 | 152 935 354 Core 1 | 1 . . Treads . | . . . Legs . | . . . Wheels 1440 | 151 935 354 Hover . | . . . Flight . | . . . Fastest Speed 50 | 50 80 140 Average Speed 129 | 79 133 140 Slowest Speed 140 | 80 140 140 Overloaded Moves . | . . . Propulsion Burnouts . | . . . Robots Hopped . | . . . Potential Cave-ins . | . . . Cave-ins Triggered . | . . . Exploration Rate (%) 50 | 5 96 49 Regions Visited 2 Branch Regions 1 Pre-discovered Areas 1 | . 1 . Known Exits Taken . | . . . Unknown Exits Taken 2 | 1 1 . Scrap Searched 1 | . . 1 Spaces Dug 1 | . 1 . Terrain Destroyed 12 | . 4 8 Melee . | . . . Projectile 4 | . 4 . AOE 8 | . . 8 Terrain Rammed . | . . . Walls Destroyed . | . . . Machines Disabled . | . . . Actions | -11 -10 -10 --------- Run | Yrd Mat Min Total 2481 | 227 1098 1156 Wait 887 | 36 76 775 Move 1439 | 151 934 354 Hop . | . . . Pick Up 44 | 12 28 4 Fast Attach 7 | 7 . . Attach 6 | . . 6 Detach . | . . . Swap 13 | . 11 2 Drop 20 | 4 15 1 Fire 65 | 17 34 14 Melee . | . . . Ram . | . . . Kick . | . . . Crush . | . . . Escape Stasis . | . . . Rewire . | . . . Trap . | . . . Miscellaneous . | . . . Route ------- -11/Scrapyard -10/Materials (discovered 5 exits: [*Mat x3] / [*Min] / [*Sub]) -10/Mines History --------- Turn | Location | Event 18 | -11/Scrapyard | Discovered new exit (range 15) 232 | -11/Scrapyard | Entered Materials 302 | -10/Materials | Build established: Mutant 305 | -10/Materials | Discovered new exit (range 10) 320 | -10/Materials | Discovered new exit (range 13) 591 | -10/Materials | Discovered new exit (range 13) 861 | -10/Materials | Discovered new exit (range 10) 932 | -10/Materials | Derelicts attacked the area 1147 | -10/Materials | Discovered new exit (range 15) 1702 | -10/Materials | Entered Mines 1702 | -10/Mines | Accompanied by 1 ally 1874 | -10/Mines | Assembled infested the area 2801 | -10/Mines | Core integrity fell below 50% 2807 | -10/Mines | Core integrity fell below 20% 2833 | -10/Mines | Lost 6 parts (1p2n3w) 3021 | -10/Mines | Destroyed by G-47 Trooper with Particle Gun Last Messages --------------- 02848_ U-05 Engineer builds a Wall. 02851_ R-06 Scavenger collects Mining Laser. 02853_ U-05 Engineer builds a Wall. 02853_ U-05 Engineer lays Concrete. 02855_ R-06 Scavenger collects Sml. Storage Unit. 02856_ U-05 Engineer builds a Wall. 02859_ R-06 Scavenger collects Ion Engine. 02861_ U-05 Engineer builds a Wall. 02862_ R-06 Scavenger collects Lgt. Ion Engine. 02864_ U-05 Engineer lays Concrete. 02865_ U-05 Engineer builds a Wall. 02873_ U-05 Engineer lays Concrete. 02877_ U-05 Engineer builds a Wall. 02882_ U-05 Engineer lays Concrete. 02902_ U-05 Engineer builds a Wall. 02943_ Searching scrap... 02943_ Found Structural Scanner. 02943_ Found 51 Matter. 02951_ Acquired Structural Scanner. 03019_ Critical hit (Burn: +37). Map ----- +----------------------------------------------------+ | ???????????????????????????????????????????? | | ???????????????????????????????????????????? | | ???????????????????????????????????????????? | | ???????????????????????????????????????????? | | ???????????????????????????????????????????? | | ???????????????????????????????????????????? | | ???????????????????????????????????????????? | | ???????????????????????????????????????????? | | ???????????? ????????????????????????????? | | ?????????? ???????##??????????????????? | | ?????????? ??????? #??????????????????? | | ????????? ?????? #??????????????????? | | ????????? ?????# ##?????????????????? | | ???????? ##### #?????????????????? | | ????????? ##????????????????? | | ??????????? ##???????????????? | | ????????????? ##??????????????? | | ??????????????? ##?????????????? | | ????????????????? #?????????????? | | ?????????????????? #?????????????? | | ??????????????????# #??????????????? | | ??????????????????# % ######??????????????? | | ?????????????#????# t###???????????????????? | | ?????????????# ???#gg#?????????????????????? | | ????# #### #### #?????????????????????? | | ????# @ #########?????????????? | | ????# #### #??? ?????? | | ????# #####???##o #######??????? ?????? | | ????###????????????# #????????????? ?????? | | ???????????????????# ##???????????? #????? | | ???????????????????# ##??????????? #????? | | ??????????????????## #??????????# #????? | | ?????????????????## ##?????????# #????? | | ????????????????## ##????##### ##???? | | ???????????????## ##???# #???? | | ??????????????## ### #???? ???? | | ?????????????## ##?## #????# ????? | | ?????????????# ##???# #???## ????? | | ?????????????# #????## ##??## #????? | | ?????????????### #?????# ##???# ##???? | | ???????????????# #?????# #????# ##??? | | ????????????#### ##????# #?????# ##?? | | ??????????### ##???# #?????### ### | | ?????????## ##??# #######?### # | | ?????????# #??# % #???## | | ?????????# #??####### #????# | | ?????????## """ ##???????# #????# | | ??????????### """ ######### ###### | | ????????????## """ | | ?????????????## | +----------------------------------------------------+ Best States ------------- Heat Dissipation 25 Energy Generation 12 Energy Capacity 265 Matter Stores 300 Matter Capacity 300 Sight Range 16 Terrain Scan Density 10 Evasion (%) 44 Item Schematics ----------------- None Robot Schematics ------------------ None Fabricated ------------ Nothing Repaired ---------- Nothing Alien Tech Used ----------------- None Achievements -------------- None Challenges ------------ None Game ------ Seed ActiveAbsorptionChainsaw Manual? 0 Play Time 00:12:59 Cumulative 1229.8 hours Start 2025.08.10 @ 19:27:30 End 2025.08.10 @ 19:40:20 Sessions 1 Manual Loads 0 Difficulty Rogue Special Mode None Game No. 589 Rogue 589 Adventurer 0 Explorer 0 Win Type - Total 23 Types 10/4/3/0/1/1/2/2/0/0 Lore% 91 Gallery% 90 Achievement% 84 Wizard Run 0 Options --------- Layout 0 ASCII 0 Keyboard 0 Movement Numpad Keybinds 0 Fullscreen 2 Font 24/Smallcaps Map View 76x50 Zoom Use 0% Tactical HUD 1 Map Filters NONE Filters SHIFT_HUE(315) Steam 1 RUN: 3eb440df-533b-49c7-abf9-077c4f541dde